fUSD/lending_fUSD_20251112
["ID","MTS","AMOUNT","RATE_DAILY","PERIOD"]
[393741667,1762959659788,-500.0,0.00039178,20]
[393741668,1762959659856,-500.0,0.00039178,20]
[393741669,1762959659925,-500.0,0.00039178,20]
[393741670,1762959659992,-500.0,0.00039178,20]
[393741671,1762959660068,-1556.2,0.00039178,20]
[393741672,1762959660138,-500.0,0.00039178,20]
[393741673,1762959660220,-500.0,0.00039178,20]
[393741674,1762959660308,-1556.2,0.00039178,20]
[393741675,1762959660383,-500.0,0.00039178,20]
[393741676,1762959660458,-1556.2,0.00039178,20]
[393741677,1762959660530,-500.0,0.00039178,20]
[393741678,1762959660595,-1556.2,0.00039178,20]
[393741679,1762959660661,-1556.2,0.00039178,20]
[393741680,1762959660724,-1556.2,0.00039178,20]
[393741681,1762959660789,-424.94356623,0.00039178,20]
[393741682,1762959660864,-403.31206832,0.00039178,20]
[393741683,1762959660932,-500.0,0.00039178,20]
[393741684,1762959661006,-500.0,0.00039178,20]
[393741685,1762959661076,-209.11644816,0.00039178,20]
[393741686,1762959661141,-535.08487285,0.00039178,20]
[393741687,1762959661212,-500.0,0.00039178,20]
[393741688,1762959661281,-500.0,0.00039178,20]
[393741689,1762959661349,-500.0,0.00039178,20]
[393741690,1762959661416,-500.0,0.00039178,20]
[393741691,1762959661486,-500.0,0.00039178,20]
[393741692,1762959661549,-500.0,0.00039178,20]
[393741693,1762959661616,-500.0,0.00039178,20]
[393741694,1762959661683,-272.23066401,0.00039178,20]
[393741695,1762959661758,-500.0,0.00039178,20]
[393741696,1762959661827,-500.0,0.00039178,20]
[393741697,1762959661902,-500.0,0.00039178,20]
[393741698,1762959661984,-500.0,0.00039178,20]
[393741699,1762959662074,-500.0,0.00039178,20]
[393741700,1762959662152,-500.0,0.00039178,20]
[393741701,1762959662231,-500.0,0.00039178,20]
[393741702,1762959662310,-500.0,0.00039178,20]
[393741703,1762959662384,-500.0,0.00039178,20]
[393741704,1762959662459,-500.0,0.00039178,20]
[393741705,1762959662537,-500.0,0.00039178,20]
[393741706,1762959662611,-500.0,0.00039178,20]
[393741707,1762959662683,-500.0,0.00039178,20]
[393741708,1762959662760,-172.73946615,0.00039178,20]
[393741709,1762959662835,-500.0,0.00039178,20]
[393741710,1762959662906,-500.0,0.00039178,20]
[393741711,1762959662975,-500.0,0.00039178,20]
[393741712,1762959663054,-500.0,0.00039178,20]
[393741713,1762959663141,-500.0,0.00039178,20]
[393741714,1762959663220,-500.0,0.00039178,20]
[393741715,1762959663301,-500.0,0.00039178,20]
[393741716,1762959663380,-500.0,0.00039178,20]
[393741717,1762959663457,-500.0,0.00039178,20]
[393741718,1762959663539,-319.56779009,0.00039178,20]
[393741719,1762959663621,-496.94360921,0.00039178,20]
[393741720,1762959663702,-500.0,0.00039178,20]
[393741721,1762959663781,-500.0,0.00039178,20]
[393741722,1762959663859,-500.0,0.00039178,20]
[393741723,1762959663935,-500.0,0.00039178,20]
[393741724,1762959664015,-500.0,0.00039178,20]
[393741725,1762959664098,-500.0,0.00039178,20]
[393741726,1762959664183,-500.0,0.00039178,20]
[393741727,1762959664266,-500.0,0.00039178,20]
[393741728,1762959664340,-500.0,0.00039178,20]
[393741729,1762959664410,-500.0,0.00039178,20]
[393741730,1762959664486,-500.0,0.00039178,20]
[393741731,1762959664582,-500.0,0.00039178,20]
[393741732,1762959664657,-630.89077957,0.00039178,20]
[393741733,1762959664742,-500.0,0.00039178,20]
[393741734,1762959664825,-500.0,0.00039178,20]
[393741735,1762959664915,-418.97492259,0.00039178,20]
[393741736,1762959665011,-500.0,0.00039178,20]
[393741737,1762959665100,-500.0,0.00039178,20]
[393741738,1762959665177,-500.0,0.00039178,20]
[393741739,1762959665247,-500.0,0.00039178,20]
[393741740,1762959665321,-500.0,0.00039178,20]
[393741741,1762959665391,-500.0,0.00039178,20]
[393741742,1762959665458,-500.0,0.00039178,20]
[393741743,1762959665525,-254.90511645,0.00039178,20]
[393741744,1762959665594,-500.0,0.00039179,20]
[393741745,1762959665667,-500.0,0.00039179,20]
[393741746,1762959665743,-500.0,0.00039179,20]
[393741747,1762959665818,-500.0,0.00039179,20]
[393741748,1762959665893,-500.0,0.00039179,20]
[393741749,1762959665974,-500.0,0.00039179,20]
[393741750,1762959666048,-500.0,0.00039179,20]
[393741751,1762959666122,-500.0,0.00039179,20]
[393741752,1762959666197,-500.0,0.00039179,20]
[393741753,1762959666283,-500.0,0.00039179,20]
[393741754,1762959666365,-500.0,0.00039179,20]
[393741755,1762959666439,-500.0,0.00039179,20]
[393741756,1762959666516,-500.0,0.00039179,20]
[393741757,1762959666587,-290.3762817,0.00039179,15]
[393741758,1762959666663,-500.0,0.00039179,20]
[393741759,1762959666734,-500.0,0.00039179,20]
[393741760,1762959666808,-500.0,0.00039179,20]
[393741761,1762959666881,-500.0,0.00039179,20]
[393741762,1762959667173,-552.21,0.00039179,20]
[393741763,1762959667248,-500.0,0.00039179,20]
[393741764,1762959667325,-1035.47,0.00039179,20]
[393741765,1762959667396,-500.0,0.00039179,20]
[393741766,1762959667465,-500.0,0.00039179,20]
[393741767,1762959667535,-823.17,0.00039179,20]
[393741768,1762959667609,-500.0,0.00039179,20]
[393741769,1762959667680,-500.0,0.00039179,20]
[393741770,1762959667762,-597.47,0.00039179,20]
[393741771,1762959667841,-300.0,0.00039179,20]
[393741772,1762959667918,-896.65,0.00039179,20]
[393741773,1762959667992,-500.0,0.00039179,20]
[393741774,1762959668075,-500.0,0.00039179,20]
[393741775,1762959668153,-500.0,0.00039179,20]
[393741776,1762959668249,-558.02,0.00039179,20]
[393741777,1762959668346,-500.0,0.00039179,20]
[393741778,1762959668425,-601.31107283,0.00039179,20]
[393741779,1762959668504,-500.0,0.00039179,20]
[393741780,1762959668584,-500.0,0.00039179,20]
[393741781,1762959668665,-500.0,0.00039179,20]
[393741782,1762959668749,-500.0,0.00039179,10]
[393741783,1762959668835,-653.98,0.00039179,20]
[393741784,1762959668915,-500.0,0.00039179,20]
[393741785,1762959668994,-500.0,0.00039179,20]
[393741786,1762959669071,-7930.44,0.00039179,20]
[393741787,1762959669147,-490.28278975,0.00039179,20]
[393741788,1762959669223,-500.0,0.00039179,20]
[393741789,1762959669299,-500.0,0.00039179,20]
[393741790,1762959669375,-586.07,0.00039179,20]
[393741791,1762959669453,-500.0,0.00039179,20]
[393741792,1762959669531,-500.0,0.00039179,20]
[393741793,1762959669606,-500.0,0.00039179,20]
[393741794,1762959669683,-500.0,0.00039179,20]
[393741795,1762959669756,-500.0,0.00039179,20]
[393741796,1762959669834,-500.0,0.00039179,20]
[393741797,1762959669914,-500.0,0.00039179,20]
[393741798,1762959669993,-500.0,0.00039179,20]
[393741799,1762959670070,-501.01,0.00039179,20]
[393741800,1762959670141,-500.0,0.00039179,20]
[393741801,1762959670208,-500.0,0.00039179,20]
[393741802,1762959670279,-500.0,0.00039179,20]
[393741803,1762959670350,-680.4,0.00039179,20]
[393741804,1762959670415,-500.0,0.00039179,20]
[393741805,1762959670480,-500.0,0.00039179,20]
[393741806,1762959670549,-500.0,0.00039179,20]
[393741807,1762959670619,-500.0,0.00039179,20]
[393741808,1762959670697,-500.0,0.00039179,20]
[393741809,1762959670775,-500.0,0.00039179,20]
[393741810,1762959670859,-500.0,0.00039179,20]
[393741811,1762959670942,-500.0,0.00039179,20]
[393741812,1762959671025,-500.0,0.00039179,20]
[393741813,1762959671101,-500.0,0.00039179,20]
[393741814,1762959671176,-500.0,0.00039179,20]
[393741815,1762959671253,-500.0,0.00039179,20]
[393741816,1762959671328,-500.0,0.00039179,20]
[393741817,1762959671397,-500.0,0.00039179,20]
[393741818,1762959671469,-1556.2,0.00039179,20]
[393741819,1762959671537,-500.0,0.00039179,20]
[393741820,1762959671608,-500.0,0.00039179,20]
[393741821,1762959671681,-500.0,0.00039179,20]
[393741822,1762959671751,-500.0,0.00039179,20]
[393741823,1762959671836,-500.0,0.00039179,20]
[393741824,1762959671915,-500.0,0.00039179,20]
[393741825,1762959671990,-158027.10412487,0.0003918,30]
[393741826,1762959672065,-500.0,0.0003918,30]
[393741827,1762959672140,-5600.0,0.000392,14]
[393741828,1762959672214,-500.0,0.00039225,30]
[393741829,1762959672286,-500.0,0.00039225,10]
[393741830,1762959672357,-150.0,0.00039225,60]
[393741831,1762959672426,-163.7947703,0.00039225,120]
[393741832,1762959672493,-150.0,0.00039225,30]
[393741833,1762959672563,-194.61212321,0.00039225,30]
[393741834,1762959672629,-706.0,0.00039225,30]
[393741835,1762959672698,-524.69802744,0.00039225,30]
[393741836,1762959672768,-218.314595,0.00039225,30]
[393741837,1762959672836,-150.0,0.00039225,30]
[393741838,1762959672905,-248.92089,0.00039288,30]
[393741839,1762959672988,-7100.0,0.000393,14]
[393741840,1762959673070,-162.66541084,0.00039306,20]
[393741841,1762959673140,-200.49008396,0.00039359,11]
[393741842,1762959673206,-200.49008386,0.00039359,11]
[393741843,1762959673273,-200.49008386,0.00039359,11]
[393741844,1762959673340,-500.0,0.00039362,30]
[393741845,1762959673406,-350.0,0.00039362,10]
[393741846,1762959673474,-243.29876332,0.00039362,60]
[393741847,1762959673544,-150.0,0.00039362,30]
[393741848,1762959673616,-706.0,0.00039362,30]
[393741849,1762959673695,-150.0,0.00039362,30]
[393741850,1762959673775,-153.50256566,0.00039366,30]
[393741851,1762959673854,-156.53410877,0.00039373,15]
[393741852,1762959673944,-200.49008386,0.00039373,11]
[393741853,1762959674043,-1400.0,0.000394,14]
[393741854,1762959674126,-258.28,0.00039452,30]
[393741855,1762959674201,-554.32,0.00039454,30]
[393741856,1762959674275,-200.49008386,0.00039472,11]
[393741857,1762959674351,-248.92089,0.00039488,30]
[393741858,1762959674434,-350.0,0.00039499,30]
[393741859,1762959674520,-163.81012894,0.00039499,30]
[393741860,1762959674596,-706.0,0.00039499,30]
[393741861,1762959674671,-200.0,0.00039499,30]
[393741862,1762959674747,-500.0,0.00039499,20]
[393741863,1762959674823,-200.0794546,0.00039499,20]
[393741864,1762959674898,-500.0,0.00039499,20]
[393741865,1762959675145,-500.0,0.00039499,20]
[393741866,1762959675220,-1130.52,0.00039499,20]
[393741867,1762959675294,-562.13278875,0.00039499,20]
[393741868,1762959675384,-641.22,0.00039499,20]
[393741869,1762959675463,-533.40034076,0.00039499,20]
[393741870,1762959675540,-500.0,0.00039499,20]
[393741871,1762959675613,-500.0,0.00039499,20]
[393741872,1762959675684,-518.32461713,0.00039499,20]
[393741873,1762959675765,-500.0,0.00039499,20]
[393741874,1762959675851,-500.0,0.00039499,20]
[393741875,1762959675938,-513.14166224,0.00039499,20]
[393741876,1762959676028,-500.0,0.00039499,20]
[393741877,1762959676108,-507.36679975,0.00039499,20]
[393741878,1762959676186,-500.0,0.00039499,20]
[393741879,1762959676268,-500.0,0.00039499,20]
[393741880,1762959676343,-559.71,0.00039499,20]
[393741881,1762959676423,-500.0,0.00039499,20]
[393741882,1762959676504,-749.36,0.00039499,20]
[393741883,1762959676582,-500.0,0.00039499,20]
[393741884,1762959676655,-500.0,0.00039499,20]
[393741885,1762959676729,-500.0,0.00039499,20]
[393741886,1762959676806,-622.83,0.00039499,20]
[393741887,1762959676882,-500.0,0.00039499,20]
[393741888,1762959676965,-952.35,0.00039499,20]
[393741889,1762959677036,-276.54807613,0.00039499,20]
[393741890,1762959677104,-500.0,0.00039499,20]
[393741891,1762959677176,-540.76,0.00039499,20]
[393741892,1762959677240,-307.37661852,0.00039499,20]
[393741893,1762959677311,-644.55225181,0.00039499,20]
[393741894,1762959677377,-500.0,0.00039499,20]
[393741895,1762959677450,-500.0,0.00039499,20]
[393741896,1762959677528,-526.58230548,0.00039499,20]
[393741897,1762959677608,-840.02,0.00039499,20]
[393741898,1762959677689,-500.0,0.00039499,20]
[393741899,1762959677760,-660.97,0.00039499,20]
[393741900,1762959677836,-500.0,0.00039499,20]
[393741901,1762959677910,-500.0,0.00039499,20]
[393741902,1762959677984,-500.0,0.00039499,20]
[393741903,1762959678057,-626.6,0.00039499,20]
[393741904,1762959678133,-601.4,0.00039499,20]
[393741905,1762959678200,-778.92,0.00039499,20]
[393741906,1762959678268,-500.0,0.00039499,20]
[393741907,1762959678334,-516.89105436,0.00039499,20]
[393741908,1762959678399,-500.0,0.00039499,20]
[393741909,1762959678464,-500.0,0.00039499,20]
[393741910,1762959678532,-504.05,0.00039499,20]
[393741911,1762959678601,-922.6,0.00039499,20]
[393741912,1762959678671,-500.0,0.00039499,20]
[393741913,1762959678738,-500.0,0.00039499,20]
[393741914,1762959678813,-500.0,0.00039499,20]
[393741915,1762959678886,-815.43,0.00039499,20]
[393741916,1762959678962,-500.0,0.00039499,20]
[393741917,1762959679037,-500.0,0.00039499,20]
[393741918,1762959679115,-500.0,0.00039499,20]
[393741919,1762959679201,-500.0,0.00039499,20]
[393741920,1762959679288,-1258.69,0.00039499,20]
[393741921,1762959679373,-500.0,0.00039499,20]
[393741922,1762959679461,-717.33,0.00039499,20]
[393741923,1762959679538,-500.0,0.00039499,20]
[393741924,1762959679616,-500.0,0.00039499,20]
[393741925,1762959679700,-500.0,0.00039499,20]
[393741926,1762959679776,-600.0,0.00039499,20]
[393741927,1762959679859,-500.0,0.00039499,20]
[393741928,1762959679939,-500.0,0.00039499,20]
[393741929,1762959680022,-460.0,0.00039499,20]
[393741930,1762959680103,-1605.45,0.00039499,20]
[393741931,1762959680180,-500.0,0.00039499,20]
[393741932,1762959680265,-500.0,0.00039499,20]
[393741933,1762959680346,-500.0,0.00039499,20]
[393741934,1762959680424,-630.23,0.00039499,20]
[393741935,1762959680500,-500.0,0.00039499,20]
[393741936,1762959680577,-500.0,0.00039499,20]
[393741937,1762959680654,-500.0,0.00039499,20]
[393741938,1762959680731,-500.0,0.00039499,20]
[393741939,1762959680815,-500.0,0.00039499,20]
[393741940,1762959680894,-500.0,0.00039499,20]
[393741941,1762959680982,-500.0,0.00039499,20]
[393741942,1762959681062,-500.0,0.00039499,20]
[393741943,1762959681159,-914.0,0.00039499,20]
[393741944,1762959681259,-744.88,0.00039499,20]
[393741945,1762959681345,-876.09,0.00039499,20]
[393741946,1762959681421,-500.0,0.00039499,20]
[393741947,1762959681497,-661.38,0.00039499,20]
[393741948,1762959681571,-500.0,0.00039499,20]
[393741949,1762959681642,-500.0,0.00039499,20]
[393741950,1762959681714,-500.0,0.00039499,20]
[393741951,1762959681789,-500.0,0.00039499,20]
[393741952,1762959681866,-500.0,0.00039499,20]
[393741953,1762959681945,-500.0,0.00039499,20]
[393741954,1762959682041,-536.78,0.00039499,20]
[393741955,1762959682132,-500.0,0.00039499,20]
[393741956,1762959682222,-535.59,0.00039499,20]
[393741957,1762959682308,-500.0,0.00039499,20]
[393741958,1762959682389,-500.0,0.00039499,20]
[393741959,1762959682464,-500.0,0.00039499,20]
[393741960,1762959682534,-500.0,0.00039499,20]
[393741961,1762959682602,-631.14249444,0.00039499,20]
[393741962,1762959682674,-500.0,0.00039499,20]
[393741963,1762959682750,-500.0,0.00039499,20]
[393741964,1762959682832,-500.0,0.00039499,20]
[393741965,1762959682907,-500.0,0.00039499,20]
[393741966,1762959682980,-500.0,0.00039499,20]
[393741967,1762959683055,-500.0,0.00039499,20]
[393741968,1762959683131,-455.10354962,0.00039499,20]
[393741969,1762959683206,-500.0,0.00039499,20]
[393741970,1762959683283,-500.0,0.00039499,20]
[393741971,1762959683565,-500.0,0.00039499,20]
[393741972,1762959683653,-500.0,0.00039499,20]
[393741973,1762959683730,-500.0,0.00039499,20]
[393741974,1762959683813,-500.0,0.00039499,20]
[393741975,1762959683898,-500.0,0.00039499,20]
[393741976,1762959683983,-500.0,0.00039499,20]
[393741977,1762959684059,-500.0,0.00039499,20]
[393741978,1762959684135,-500.0,0.00039499,20]
[393741979,1762959684209,-500.0,0.00039499,20]
[393741980,1762959684291,-500.0,0.00039499,20]
[393741981,1762959684369,-500.0,0.00039499,20]
[393741982,1762959684443,-500.0,0.00039499,20]
[393741983,1762959684516,-500.0,0.00039499,20]
[393741984,1762959684595,-500.0,0.00039499,20]
[393741985,1762959684668,-500.0,0.00039499,20]
[393741986,1762959684743,-500.0,0.00039499,20]
[393741987,1762959684826,-500.0,0.00039499,20]
[393741988,1762959684908,-500.0,0.00039499,20]
[393741989,1762959684985,-500.0,0.00039499,20]
[393741990,1762959685069,-500.0,0.00039499,20]
[393741991,1762959685154,-500.0,0.00039499,20]
[393741992,1762959685225,-500.0,0.00039499,20]
[393741993,1762959685305,-500.0,0.00039499,20]
[393741994,1762959685381,-500.0,0.00039499,20]
[393741995,1762959685450,-698.51,0.00039499,20]
[393741996,1762959685517,-500.0,0.00039499,20]
[393741997,1762959685587,-500.0,0.00039499,20]
[393741998,1762959685658,-1400.0,0.000395,14]
[393741999,1762959685723,-200.49008386,0.0003957,11]
[393742000,1762959685793,-1400.0,0.000396,14]
[393742001,1762959685866,-706.0,0.00039636,30]
[393742002,1762959685939,-156.53410877,0.00039669,15]
[393742003,1762959686016,-200.49008386,0.00039669,12]
[393742004,1762959686096,-248.92089,0.00039688,30]
[393742005,1762959686171,-1400.0,0.000397,14]
[393742006,1762959686243,-258.29,0.00039726,30]
[393742007,1762959686312,-610.0,0.00039739,30]
[393742008,1762959686383,-200.49008386,0.00039767,12]
[393742009,1762959686454,-706.0,0.00039773,30]
[393742010,1762959686528,-1718.0,0.000398,14]
[393742011,1762959686602,-5740.60134411,0.00039833,15]
[393742012,1762959686669,-200.49008386,0.00039865,12]
[393742013,1762959686737,-248.92089,0.00039888,30]
[393742014,1762959686807,-610.0,0.00039898,30]
[393742015,1762959686879,-706.0,0.0003991,30]
[393742016,1762959686958,-168.0,0.00039963,120]
[393742017,1762959687033,-156.53410877,0.00039964,15]
[393742018,1762959687104,-200.49008386,0.00039964,12]
[393742019,1762959687176,-5740.60134411,0.00039975,15]
[393742020,1762959687254,-1140.61918551,0.00039993,15]
[393742021,1762959687336,-218.29,0.0004,120]
[393742022,1762959687416,-635.82,0.0004,120]
[393742023,1762959687494,-1107.36,0.0004,120]
[393742024,1762959687565,-1082.26,0.0004,120]
[393742025,1762959687634,-1590.4,0.0004,120]
[393742026,1762959687705,-190.53,0.0004,120]
[393742027,1762959687781,-322.0,0.0004,120]
[393742028,1762959687853,-706.0,0.00040047,30]
[393742029,1762959687926,-610.0,0.00040057,30]
[393742030,1762959687999,-200.49008386,0.00040062,12]
[393742031,1762959688074,-248.92089,0.00040088,30]
[393742032,1762959688145,-156.66298396,0.0004009,28]
[393742033,1762959688214,-2500.0,0.0004009,14]
[393742034,1762959688287,-2500.0,0.00040099,14]
[393742035,1762959688356,-2500.0,0.00040108,14]
[393742036,1762959688426,-150.04,0.00040111,120]
[393742037,1762959688500,-150.04,0.00040111,120]
[393742038,1762959688567,-150.04,0.00040111,120]
[393742039,1762959688637,-150.04,0.00040111,120]
[393742040,1762959688705,-150.04,0.00040111,120]
[393742041,1762959688775,-150.04,0.00040111,120]
[393742042,1762959688850,-150.04,0.00040111,120]
[393742043,1762959688926,-150.04,0.00040111,120]
[393742044,1762959689000,-150.04,0.00040111,120]
[393742045,1762959689075,-150.04,0.00040111,120]
[393742046,1762959689145,-2500.0,0.00040117,14]
[393742047,1762959689223,-5740.60134411,0.00040117,15]
[393742048,1762959689304,-1140.61918551,0.00040124,15]
[393742049,1762959689375,-2500.0,0.00040126,14]
[393742050,1762959689443,-2500.0,0.00040134,14]
[393742051,1762959689513,-2500.0,0.00040143,14]
[393742052,1762959689591,-2500.0,0.00040152,14]
[393742053,1762959689659,-200.49008386,0.00040161,12]
[393742054,1762959689730,-706.0,0.00040184,30]
[393742055,1762959689807,-150.0,0.000402,26]
[393742056,1762959689897,-610.0,0.00040216,30]
[393742057,1762959689980,-500.0,0.00040244,20]
[393742058,1762959690055,-500.0,0.00040244,20]
[393742059,1762959690128,-500.0,0.00040244,20]
[393742060,1762959690202,-500.0,0.00040244,20]
[393742061,1762959690279,-500.0,0.00040244,20]
[393742062,1762959690349,-500.0,0.00040244,20]
[393742063,1762959690421,-500.0,0.00040244,20]
[393742064,1762959690490,-223.23001435,0.00040244,20]
[393742065,1762959690558,-500.0,0.00040244,20]
[393742066,1762959690631,-500.0,0.00040244,20]
[393742067,1762959690702,-500.0,0.00040244,20]
[393742068,1762959690770,-500.0,0.00040244,20]
[393742069,1762959690847,-500.0,0.00040244,20]
[393742070,1762959690926,-500.0,0.00040244,20]
[393742071,1762959691013,-500.0,0.00040244,20]
[393742072,1762959691268,-552.21,0.00040244,20]
[393742073,1762959691348,-500.0,0.00040244,20]
[393742074,1762959691422,-1035.47,0.00040244,20]
[393742075,1762959691495,-500.0,0.00040244,20]
[393742076,1762959691569,-500.0,0.00040244,20]
[393742077,1762959691642,-174.31941246,0.00040244,14]
[393742078,1762959691712,-823.17,0.00040244,20]
[393742079,1762959691785,-500.0,0.00040244,20]
[393742080,1762959691855,-597.47,0.00040244,20]
[393742081,1762959691924,-896.65,0.00040244,20]
[393742082,1762959691993,-500.0,0.00040244,20]
[393742083,1762959692066,-500.0,0.00040244,20]
[393742084,1762959692138,-500.0,0.00040244,20]
[393742085,1762959692207,-500.0,0.00040244,20]
[393742086,1762959692276,-500.0,0.00040244,20]
[393742087,1762959692349,-500.0,0.00040244,20]
[393742088,1762959692419,-500.0,0.00040244,20]
[393742089,1762959692493,-500.0,0.00040244,10]
[393742090,1762959692567,-653.98,0.00040244,20]
[393742091,1762959692652,-500.0,0.00040244,20]
[393742092,1762959692720,-294.61602602,0.00040244,20]
[393742093,1762959692807,-7930.44,0.00040244,20]
[393742094,1762959692880,-385.57524156,0.00040244,20]
[393742095,1762959692952,-500.0,0.00040244,20]
[393742096,1762959693026,-586.07,0.00040244,20]
[393742097,1762959693104,-500.0,0.00040244,20]
[393742098,1762959693180,-500.0,0.00040244,20]
[393742099,1762959693262,-500.0,0.00040244,20]
[393742100,1762959693334,-500.0,0.00040244,20]
[393742101,1762959693413,-500.0,0.00040244,20]
[393742102,1762959693502,-354.5717713,0.00040244,20]
[393742103,1762959693613,-500.0,0.00040244,20]
[393742104,1762959693699,-500.0,0.00040244,20]
[393742105,1762959693780,-501.01,0.00040244,20]
[393742106,1762959693870,-500.0,0.00040244,20]
[393742107,1762959693951,-500.0,0.00040244,20]
[393742108,1762959694025,-500.0,0.00040244,20]
[393742109,1762959694110,-680.4,0.00040244,20]
[393742110,1762959694189,-500.0,0.00040244,20]
[393742111,1762959694287,-500.0,0.00040244,20]
[393742112,1762959694362,-500.0,0.00040244,20]
[393742113,1762959694440,-500.0,0.00040244,20]
[393742114,1762959694518,-500.0,0.00040244,20]
[393742115,1762959694600,-500.0,0.00040244,20]
[393742116,1762959694678,-500.0,0.00040244,20]
[393742117,1762959694754,-500.0,0.00040244,20]
[393742118,1762959694830,-500.0,0.00040244,20]
[393742119,1762959694906,-500.0,0.00040244,20]
[393742120,1762959694987,-500.0,0.00040244,20]
[393742121,1762959695072,-500.0,0.00040244,20]
[393742122,1762959695154,-500.0,0.00040244,20]
[393742123,1762959695230,-795.80910859,0.00040244,20]
[393742124,1762959695776,-181.31025833,0.00040254,120]
[393742125,1762959695853,-5000.0,0.00040255,120]
[393742126,1762959695930,-248.92089,0.00040288,30]
[393742127,1762959696007,-194.43,0.000403,60]
[393742128,1762959696089,-1010.46563839,0.000403,30]
[393742129,1762959696173,-2000.0,0.000403,30]
[393742130,1762959696250,-706.0,0.00040321,30]
[393742131,1762959696361,-2026.7258,0.00040354,30]
[393742132,1762959696496,-999.0,0.00040354,120]
[393742133,1762959696595,-164.44623621,0.00040355,60]
[393742134,1762959696671,-157.160354,0.00040355,120]
[393742135,1762959696749,-154.011465,0.00040355,90]
[393742136,1762959696830,-151.0,0.00040355,120]
[393742137,1762959696916,-151.0,0.00040355,120]
[393742138,1762959696995,-153.760684,0.00040355,120]
[393742139,1762959697078,-151.0,0.00040355,120]
[393742140,1762959697152,-153.101118,0.00040355,120]
[393742141,1762959697226,-153.794407,0.00040355,120]
[393742142,1762959697303,-151.0,0.00040355,120]
[393742143,1762959697376,-153.938725,0.00040355,120]
[393742144,1762959697451,-154.26487,0.00040355,120]
[393742145,1762959697527,-151.956882,0.00040355,120]
[393742146,1762959697602,-153.386069,0.00040355,120]
[393742147,1762959697677,-151.0,0.00040355,120]
[393742148,1762959697751,-151.0,0.00040355,120]
[393742149,1762959697826,-151.0,0.00040355,120]
[393742150,1762959697901,-177.615787,0.00040355,120]
[393742151,1762959697998,-162.953906,0.00040355,120]
[393742152,1762959698085,-156.726224,0.00040355,120]
[393742153,1762959698171,-151.0,0.00040359,120]
[393742154,1762959698248,-267.706574,0.00040359,120]
[393742155,1762959698499,-170.808803,0.00040359,120]
[393742156,1762959698578,-151.0,0.00040359,120]
[393742157,1762959698661,-174.511435,0.00040359,120]
[393742158,1762959698747,-151.0,0.00040359,120]
[393742159,1762959698830,-151.135937,0.00040359,120]
[393742160,1762959698913,-151.0,0.00040359,120]
[393742161,1762959699000,-151.0,0.00040359,120]
[393742162,1762959699080,-151.0,0.00040359,120]
[393742163,1762959699163,-151.0,0.00040359,120]
[393742164,1762959699238,-151.0,0.00040359,120]
[393742165,1762959699312,-151.0,0.00040359,120]
[393742166,1762959699387,-151.0,0.00040359,120]